fUSD/lending_fUSD_20241018
["ID","MTS","AMOUNT","RATE_DAILY","PERIOD"]
[340459460,1729270294463,-1637.92,0.00024988,2]
[340459461,1729270294472,-5078.26,0.00024988,2]
[340459462,1729270294481,-1391.61,0.00024988,2]
[340459463,1729270294491,-755.26,0.00024988,2]
[340459464,1729270294501,-3777.83,0.00024988,2]
[340459465,1729270294511,-1107.47,0.00024988,2]
[340459466,1729270294520,-1233.07,0.00024988,2]
[340459467,1729270294530,-738.9,0.00024988,2]
[340459468,1729270294539,-1368.07,0.00024988,2]
[340459469,1729270294549,-1041.77,0.00024988,2]
[340459470,1729270294560,-3223.03,0.00024988,2]
[340459471,1729270294569,-500.0,0.00024988,2]
[340459472,1729270294579,-1408.48,0.00024988,2]
[340459473,1729270294588,-349.58574686,0.00024988,2]
[340459474,1729270294597,-1424.63,0.00024988,2]
[340459475,1729270294607,-680.36,0.00024988,2]
[340459476,1729270294616,-1400.24,0.00024988,2]
[340459477,1729270294626,-2031.71,0.00024988,2]
[340459478,1729270294636,-500.0,0.00024988,2]
[340459479,1729270294646,-500.0,0.00024988,2]
[340459480,1729270294655,-2660.44,0.00024988,2]
[340459481,1729270294665,-2196.59,0.00024988,2]
[340459482,1729270294674,-836.42,0.00024988,2]
[340459483,1729270294684,-4188.25,0.00024988,2]
[340459484,1729270294694,-5174.91,0.00024988,2]
[340459485,1729270294703,-565.55,0.00024988,2]
[340459486,1729270294712,-2230.47,0.00024988,2]
[340459487,1729270294722,-2903.2,0.00024988,2]
[340459488,1729270294732,-685.12,0.00024988,2]
[340459489,1729270294742,-500.0,0.00024988,2]
[340459490,1729270294752,-500.0,0.00024988,2]
[340459491,1729270294762,-4263.44,0.00024988,2]
[340459492,1729270294771,-3532.22,0.00024988,2]
[340459493,1729270294781,-856.01,0.00024988,2]
[340459494,1729270294791,-735.7,0.00024988,2]
[340459495,1729270294800,-3308.42,0.00024988,2]
[340459496,1729270294811,-834.21,0.00024988,2]
[340459497,1729270294821,-1420.96,0.00024988,2]
[340459498,1729270294831,-747.07,0.00024988,2]
[340459499,1729270294840,-958.19,0.00024988,2]
[340459500,1729270294850,-500.0,0.00024988,2]
[340459501,1729270294859,-1557.1,0.00024988,2]
[340459502,1729270294869,-787.86,0.00024988,2]
[340459503,1729270294878,-4394.99,0.00024988,2]
[340459504,1729270294888,-1144.91,0.00024988,2]
[340459505,1729270294897,-3883.55,0.00024988,2]
[340459506,1729270294907,-500.0,0.00024988,2]
[340459507,1729270294917,-1237.3,0.00024988,2]
[340459508,1729270294927,-500.0,0.00024989,2]
[340459509,1729270294936,-500.0,0.00024989,2]
[340459510,1729270294945,-500.0,0.00024989,2]
[340459511,1729270294955,-500.0,0.00024989,2]
[340459512,1729270294964,-500.0,0.00024989,2]
[340459513,1729270294974,-500.0,0.00024989,2]
[340459514,1729270294983,-500.0,0.00024989,2]
[340459515,1729270294993,-847.05,0.00024989,2]
[340459516,1729270295003,-847.05,0.00024989,2]
[340459517,1729270295012,-847.05,0.00024989,2]
[340459518,1729270295022,-511.23443358,0.00024989,2]
[340459519,1729270295031,-500.0,0.00024989,2]
[340459520,1729270295040,-500.0,0.00024989,2]
[340459521,1729270295050,-500.0,0.00024989,2]
[340459522,1729270295061,-956.86,0.00024989,2]
[340459523,1729270295070,-956.86,0.00024989,2]
[340459524,1729270295079,-956.86,0.00024989,2]
[340459525,1729270295089,-500.0,0.00024989,2]
[340459526,1729270295098,-500.0,0.00024989,2]
[340459527,1729270295108,-500.0,0.00024989,2]
[340459528,1729270295117,-500.0,0.00024989,2]
[340459529,1729270295127,-500.0,0.00024989,2]
[340459530,1729270295136,-500.0,0.00024989,2]
[340459531,1729270295146,-500.0,0.00024989,2]
[340459532,1729270295155,-500.0,0.00024989,2]
[340459533,1729270295164,-500.0,0.00024989,2]
[340459534,1729270295174,-500.0,0.00024989,2]
[340459535,1729270295183,-500.0,0.00024989,2]
[340459536,1729270295193,-500.0,0.00024989,2]
[340459537,1729270295202,-150.0,0.00024989,2]
[340459538,1729270295214,-150.0,0.00024989,2]
[340459539,1729270295223,-150.0,0.00024989,2]
[340459540,1729270295233,-500.0,0.00024989,2]
[340459541,1729270295242,-500.0,0.00024989,2]
[340459542,1729270295252,-500.0,0.00024989,2]
[340459543,1729270295261,-922.52,0.00024989,2]
[340459544,1729270295271,-654.42,0.00024989,2]
[340459545,1729270295284,-500.0,0.00024989,2]
[340459546,1729270295293,-500.0,0.00024989,2]
[340459547,1729270295303,-500.0,0.00024989,2]
[340459548,1729270295312,-500.0,0.00024989,2]
[340459549,1729270295322,-500.0,0.00024989,2]
[340459550,1729270295331,-500.0,0.00024989,2]
[340459551,1729270295340,-500.0,0.00024989,2]
[340459552,1729270295350,-500.0,0.00024989,2]
[340459553,1729270295360,-500.0,0.00024989,2]
[340459554,1729270295369,-519.30881977,0.00024989,2]
[340459555,1729270295379,-503.81,0.00024989,2]
[340459556,1729270295388,-503.81,0.00024989,2]
[340459557,1729270295398,-500.0,0.00024989,2]
[340459558,1729270295408,-503.81,0.00024989,2]
[340459559,1729270295417,-344.19686275,0.00024989,2]
[340459560,1729270295427,-1915.09,0.00024989,2]
[340459561,1729270295437,-1915.09,0.00024989,2]
[340459562,1729270295446,-1915.09,0.00024989,2]
[340459563,1729270295455,-500.0,0.00024989,2]
[340459564,1729270295465,-1686.44,0.00024989,2]
[340459565,1729270295474,-1686.44,0.00024989,2]
[340459566,1729270295484,-1686.44,0.00024989,2]
[340459567,1729270295494,-500.0,0.00024989,2]
[340459568,1729270295503,-589.50540985,0.00024989,2]
[340459569,1729270295513,-500.0,0.00024989,2]
[340459570,1729270295522,-522.09334657,0.00024989,2]
[340459571,1729270295532,-500.0,0.00024989,2]
[340459572,1729270295545,-500.0,0.00024989,2]
[340459573,1729270295555,-504.05214844,0.00024989,2]
[340459574,1729270295564,-1115.52,0.00024989,2]
[340459575,1729270295573,-1115.52,0.00024989,2]
[340459576,1729270295583,-1115.52,0.00024989,2]
[340459577,1729270295593,-500.0,0.00024989,2]
[340459578,1729270295602,-500.0,0.00024989,2]
[340459579,1729270295612,-167.54055742,0.00024989,2]
[340459580,1729270295621,-500.0,0.00024989,2]
[340459581,1729270295631,-500.0,0.00024989,2]
[340459582,1729270295641,-1014.23,0.00024989,2]
[340459583,1729270295651,-878.92,0.00024989,2]
[340459584,1729270295660,-878.92,0.00024989,2]
[340459585,1729270295670,-878.92,0.00024989,2]
[340459586,1729270295679,-500.0,0.00024989,2]
[340459587,1729270295689,-500.0,0.00024989,2]
[340459588,1729270295699,-500.0,0.00024989,2]
[340459589,1729270295709,-500.0,0.00024989,2]
[340459590,1729270295719,-500.0,0.00024989,2]
[340459591,1729270295728,-500.0,0.00024989,2]
[340459592,1729270295738,-1542.93,0.00024989,2]
[340459593,1729270295748,-1542.93,0.00024989,2]
[340459594,1729270295758,-1542.93,0.00024989,2]
[340459595,1729270295767,-500.0,0.00024989,2]
[340459596,1729270295777,-520.67703949,0.00024989,2]
[340459597,1729270295787,-500.0,0.00024989,2]
[340459598,1729270295796,-520.95719942,0.00024989,2]
[340459599,1729270295807,-500.0,0.00024989,2]
[340459600,1729270295816,-500.0,0.00024989,2]
[340459601,1729270295826,-214.34393472,0.00024989,2]
[340459602,1729270295835,-500.0,0.00024989,2]
[340459603,1729270295845,-510.59743225,0.00024989,2]
[340459604,1729270295854,-500.0,0.00024989,2]
[340459605,1729270295864,-524.67704596,0.00024989,2]
[340459606,1729270295874,-500.0,0.00024989,2]
[340459607,1729270295884,-525.61571012,0.00024989,2]
[340459608,1729270295894,-500.0,0.00024989,2]
[340459609,1729270295904,-535.4283891,0.00024989,2]
[340459610,1729270295914,-500.0,0.00024989,2]
[340459611,1729270295923,-562.41460919,0.00024989,2]
[340459612,1729270295933,-546.31,0.00024989,2]
[340459613,1729270295943,-500.0,0.00024989,2]
[340459614,1729270295952,-500.0,0.00024989,2]
[340459615,1729270295962,-500.0,0.00024989,2]
[340459616,1729270295972,-500.0,0.00024989,2]
[340459617,1729270295981,-532.11438887,0.00024989,2]
[340459618,1729270295991,-500.0,0.00024989,2]
[340459619,1729270296001,-424.28781721,0.00024989,2]
[340459620,1729270296010,-1189.43,0.00024989,2]
[340459621,1729270296019,-794.06,0.00024989,2]
[340459622,1729270296028,-794.06,0.00024989,2]
[340459623,1729270296156,-794.06,0.00024989,2]
[340459624,1729270296166,-1380.31,0.00024989,2]
[340459625,1729270296175,-1380.31,0.00024989,2]
[340459626,1729270296185,-1380.31,0.00024989,2]
[340459627,1729270296194,-151.0,0.00024989,7]
[340459628,1729270296203,-500.0,0.00024989,2]
[340459629,1729270296214,-151.0,0.00024989,7]
[340459630,1729270296225,-781.56,0.00024989,2]
[340459631,1729270296234,-2798.14,0.00024989,2]
[340459632,1729270296243,-2896.67,0.00024989,2]
[340459633,1729270296252,-151.0,0.00024989,7]
[340459634,1729270296262,-151.0,0.00024989,7]
[340459635,1729270296271,-1804.98,0.00024989,2]
[340459636,1729270296280,-3144.41,0.00024989,2]
[340459637,1729270296290,-526.03,0.00024989,2]
[340459638,1729270296299,-656.64,0.00024989,2]
[340459639,1729270296310,-500.0,0.00024989,2]
[340459640,1729270296319,-500.0,0.00024989,2]
[340459641,1729270296328,-1968.3,0.00024989,2]
[340459642,1729270296337,-831.76,0.00024989,2]
[340459643,1729270296347,-2877.31,0.00024989,2]
[340459644,1729270296358,-2276.82,0.00024989,2]
[340459645,1729270296368,-500.0,0.00024989,2]
[340459646,1729270296378,-4187.06,0.00024989,2]
[340459647,1729270296387,-2377.83,0.00024989,2]
[340459648,1729270296398,-834.78,0.00024989,2]
[340459649,1729270296407,-2135.6,0.00024989,2]
[340459650,1729270296415,-500.0,0.00024989,2]
[340459651,1729270296427,-1844.82,0.00024989,2]
[340459652,1729270296436,-2049.83,0.00024989,2]
[340459653,1729270296446,-673.430797,0.00024989,7]
[340459654,1729270296456,-673.430797,0.00024989,7]
[340459655,1729270296466,-2588.86,0.00024989,2]
[340459656,1729270296476,-563.22,0.00024989,2]
[340459657,1729270296486,-1084.66,0.00024989,2]
[340459658,1729270296495,-2813.56,0.00024989,2]
[340459659,1729270296504,-3225.92,0.00024989,2]
[340459660,1729270296513,-992.26,0.00024989,2]
[340459661,1729270296522,-372.75875336,0.00024989,2]
[340459662,1729270296531,-2469.01,0.00024989,2]
[340459663,1729270296540,-1794.17,0.00024989,2]
[340459664,1729270296549,-520.41,0.00024989,2]
[340459665,1729270296560,-521.56,0.00024989,2]
[340459666,1729270296570,-2360.22,0.00024989,2]
[340459667,1729270296579,-629.41460897,0.00024989,2]
[340459668,1729270296589,-313.93958418,0.00024989,2]
[340459669,1729270296599,-577.73,0.00024989,2]
[340459670,1729270296608,-500.0,0.00024989,2]
[340459671,1729270296617,-533.06,0.00024989,2]
[340459672,1729270296626,-1817.86,0.00024989,2]
[340459673,1729270296635,-1562.27,0.00024989,2]
[340459674,1729270296645,-710.87,0.00024989,2]
[340459675,1729270296655,-1296.19,0.00024989,2]
[340459676,1729270296665,-892.17,0.00024989,2]
[340459677,1729270296675,-1216.65,0.00024989,2]
[340459678,1729270296685,-206.111502,0.00024989,7]
[340459679,1729270296695,-151.0,0.00024989,7]
[340459680,1729270296704,-1023.47,0.00024989,2]
[340459681,1729270296715,-1276.41,0.00024989,2]
[340459682,1729270296724,-1260.19,0.00024989,2]
[340459683,1729270296733,-500.0,0.00024989,2]
[340459684,1729270296744,-1554.24,0.00024989,2]
[340459685,1729270296754,-721.74,0.00024989,2]
[340459686,1729270296764,-500.0,0.00024989,2]
[340459687,1729270296774,-1499.07,0.00024989,2]
[340459688,1729270296783,-2005.97,0.00024989,2]
[340459689,1729270296793,-798.5,0.00024989,2]
[340459690,1729270296803,-647.59,0.00024989,2]
[340459691,1729270296814,-2245.41,0.00024989,2]
[340459692,1729270296822,-912.42,0.00024989,2]
[340459693,1729270296831,-2790.21,0.00024989,2]
[340459694,1729270296841,-1480.05,0.00024989,2]
[340459695,1729270296850,-500.0,0.00024989,2]
[340459696,1729270296859,-833.33,0.00024989,2]
[340459697,1729270296868,-885.31,0.00024989,2]
[340459698,1729270296878,-853.35,0.00024994,2]
[340459699,1729270296888,-853.35,0.00024994,2]
[340459700,1729270296897,-853.35,0.00024994,2]
[340459701,1729270296906,-853.35,0.00024994,2]
[340459702,1729270296916,-853.36895448,0.00024994,2]
[340459703,1729270296925,-717.26,0.00024994,2]
[340459704,1729270296935,-717.26,0.00024994,2]
[340459705,1729270296945,-717.26,0.00024994,2]
[340459706,1729270296954,-717.26,0.00024994,2]
[340459707,1729270296965,-717.38949475,0.00024994,2]
[340459708,1729270296974,-658.03,0.00024994,2]
[340459709,1729270296984,-658.03,0.00024994,2]
[340459710,1729270296993,-658.03,0.00024994,2]
[340459711,1729270297002,-658.03,0.00024994,2]
[340459712,1729270297012,-658.15,0.00024994,2]
[340459713,1729270297021,-928.05,0.00024994,2]
[340459714,1729270297030,-928.05,0.00024994,2]
[340459715,1729270297039,-928.05,0.00024994,2]
[340459716,1729270297048,-928.05,0.00024994,2]
[340459717,1729270297057,-928.10804381,0.00024994,2]
[340459718,1729270297067,-1353.44,0.00024994,2]
[340459719,1729270297076,-1353.44,0.00024994,2]
[340459720,1729270297085,-1353.44,0.00024994,2]
[340459721,1729270297095,-1353.44,0.00024994,2]
[340459722,1729270297105,-1353.47292975,0.00024994,2]
[340459723,1729270297114,-1382.42,0.00024994,2]
[340459724,1729270297123,-1382.42,0.00024994,2]
[340459725,1729270297133,-1382.42,0.00024994,2]
[340459726,1729270297142,-1382.42,0.00024994,2]
[340459727,1729270297152,-1382.47045854,0.00024994,2]
[340459728,1729270297161,-1003.64,0.00024994,2]
[340459729,1729270297170,-1003.64,0.00024994,2]
[340459730,1729270297180,-1003.64,0.00024994,2]
[340459731,1729270297189,-1003.64,0.00024994,2]
[340459732,1729270297199,-1003.68522931,0.00024994,2]
[340459733,1729270297208,-1034.2,0.00024994,2]
[340459734,1729270297219,-1034.2,0.00024994,2]
[340459735,1729270297229,-1034.2,0.00024994,2]
[340459736,1729270297238,-1034.2,0.00024994,2]
[340459737,1729270297248,-1034.21758269,0.00024994,2]
[340459738,1729270297258,-950.41,0.00024994,2]
[340459739,1729270297270,-950.41,0.00024994,2]
[340459740,1729270297279,-950.41,0.00024994,2]
[340459741,1729270297289,-950.41,0.00024994,2]
[340459742,1729270297300,-950.54025707,0.00024994,2]
[340459743,1729270297311,-151.0,0.00024994,7]
[340459744,1729270297320,-386.91,0.00024994,2]
[340459745,1729270297330,-386.91,0.00024994,2]
[340459746,1729270297341,-386.91,0.00024994,2]
[340459747,1729270297351,-386.91,0.00024994,2]
[340459748,1729270297362,-387.11399017,0.00024994,2]
[340459749,1729270297371,-1679.12,0.00024994,2]
[340459750,1729270297381,-1679.12,0.00024994,2]
[340459751,1729270297391,-1679.12,0.00024994,2]
[340459752,1729270297400,-1679.12,0.00024994,2]
[340459753,1729270297409,-1679.34348737,0.00024994,2]
[340459754,1729270297419,-741.62,0.00024994,2]
[340459755,1729270297428,-741.62,0.00024994,2]
[340459756,1729270297438,-741.62,0.00024994,2]
[340459757,1729270297447,-741.62,0.00024994,2]
[340459758,1729270297457,-741.79619448,0.00024994,2]
[340459759,1729270297466,-505.67,0.00024994,2]
[340459760,1729270297475,-505.67,0.00024994,2]
[340459761,1729270297485,-505.67,0.00024994,2]
[340459762,1729270297495,-505.67,0.00024994,2]
[340459763,1729270297504,-505.7708606,0.00024994,2]
[340459764,1729270297515,-572.58,0.00024994,2]
[340459765,1729270297525,-572.58,0.00024994,2]
[340459766,1729270297535,-572.58,0.00024994,2]
[340459767,1729270297546,-572.58,0.00024994,2]
[340459768,1729270297556,-572.67606766,0.00024994,2]
[340459769,1729270297565,-528.67,0.00024994,2]
[340459770,1729270297575,-528.67,0.00024994,2]
[340459771,1729270297585,-528.67,0.00024994,2]
[340459772,1729270297594,-528.67,0.00024994,2]
[340459773,1729270297604,-528.87563836,0.00024994,2]
[340459774,1729270297613,-549.34,0.00024994,2]
[340459775,1729270297623,-549.34,0.00024994,2]
[340459776,1729270297632,-549.34,0.00024994,2]
[340459777,1729270297641,-549.34,0.00024994,2]
[340459778,1729270297651,-549.39404927,0.00024994,2]
[340459779,1729270297660,-1637.92,0.00024994,2]
[340459780,1729270297669,-1637.92,0.00024994,2]
[340459781,1729270297679,-1637.92,0.00024994,2]
[340459782,1729270297689,-1637.92,0.00024994,2]
[340459783,1729270297699,-1638.00923673,0.00024994,2]
[340459784,1729270297708,-1391.61,0.00024994,2]
[340459785,1729270297717,-1391.61,0.00024994,2]
[340459786,1729270297726,-1391.61,0.00024994,2]
[340459787,1729270297735,-1391.61,0.00024994,2]
[340459788,1729270297745,-1391.71928869,0.00024994,2]
[340459789,1729270297754,-3777.83,0.00024994,2]
[340459790,1729270297764,-3777.83,0.00024994,2]
[340459791,1729270297773,-3777.83,0.00024994,2]
[340459792,1729270297783,-3777.83,0.00024994,2]
[340459793,1729270297793,-3777.84326291,0.00024994,2]
[340459794,1729270297905,-1107.47,0.00024994,2]
[340459795,1729270297925,-1107.47,0.00024994,2]
[340459796,1729270297934,-1107.47,0.00024994,2]
[340459797,1729270297944,-1107.47,0.00024994,2]
[340459798,1729270297953,-1107.49576807,0.00024994,2]
[340459799,1729270297963,-150.0,0.00024994,2]
[340459800,1729270297972,-151.0,0.00024994,7]
[340459801,1729270297982,-680.36,0.00024994,2]
[340459802,1729270297991,-680.36,0.00024994,2]
[340459803,1729270298000,-680.36,0.00024994,2]
[340459804,1729270298010,-680.36,0.00024994,2]
[340459805,1729270298020,-680.5,0.00024994,2]
[340459806,1729270298029,-1400.24,0.00024994,2]
[340459807,1729270298038,-1400.24,0.00024994,2]
[340459808,1729270298047,-1400.24,0.00024994,2]
[340459809,1729270298058,-1400.24,0.00024994,2]
[340459810,1729270298068,-1400.38476525,0.00024994,2]
[340459811,1729270298078,-246.743544,0.00024994,7]
[340459812,1729270298088,-246.743544,0.00024994,7]
[340459813,1729270298097,-2196.59,0.00024994,2]
[340459814,1729270298107,-2196.59,0.00024994,2]
[340459815,1729270298116,-2196.59,0.00024994,2]
[340459816,1729270298126,-2196.59,0.00024994,2]
[340459817,1729270298135,-2196.64815623,0.00024994,2]
[340459818,1729270298146,-184.993187,0.00024994,7]
[340459819,1729270298161,-282.992755,0.00024994,7]
[340459820,1729270298171,-184.993187,0.00024994,7]
[340459821,1729270298181,-5174.91,0.00024994,2]
[340459822,1729270298190,-5174.91,0.00024994,2]
[340459823,1729270298200,-5174.91,0.00024994,2]
[340459824,1729270298211,-5174.91,0.00024994,2]
[340459825,1729270298224,-5175.00871725,0.00024994,2]
[340459826,1729270298234,-2903.2,0.00024994,2]
[340459827,1729270298244,-2903.2,0.00024994,2]
[340459828,1729270298254,-2903.2,0.00024994,2]
[340459829,1729270298265,-2903.2,0.00024994,2]
[340459830,1729270298274,-2903.23304855,0.00024994,2]
[340459831,1729270298284,-262.29360537,0.00024994,2]
[340459832,1729270298296,-4263.44,0.00024994,2]
[340459833,1729270298307,-4263.44,0.00024994,2]
[340459834,1729270298316,-4263.44,0.00024994,2]
[340459835,1729270298326,-4263.44,0.00024994,2]
[340459836,1729270298335,-4263.65206903,0.00024994,2]
[340459837,1729270298345,-1420.96,0.00024994,2]
[340459838,1729270298355,-1420.96,0.00024994,2]
[340459839,1729270298364,-1420.96,0.00024994,2]
[340459840,1729270298373,-1420.96,0.00024994,2]
[340459841,1729270298383,-1421.05422936,0.00024994,2]
[340459842,1729270298393,-747.07,0.00024994,2]
[340459843,1729270298403,-747.07,0.00024994,2]
[340459844,1729270298413,-747.07,0.00024994,2]
[340459845,1729270298423,-747.07,0.00024994,2]
[340459846,1729270298433,-747.11901985,0.00024994,2]
[340459847,1729270298442,-958.19,0.00024994,2]
[340459848,1729270298452,-958.19,0.00024994,2]
[340459849,1729270298462,-536.27995687,0.00024994,2]
[340459850,1729270298471,-958.19,0.00024994,2]
[340459851,1729270298481,-958.19,0.00024994,2]
[340459852,1729270298490,-958.29029617,0.00024994,2]
[340459853,1729270298501,-4394.99,0.00024994,2]
[340459854,1729270298510,-4394.99,0.00024994,2]
[340459855,1729270298520,-3883.55,0.00024994,2]
[340459856,1729270298530,-4394.99,0.00024994,2]
[340459857,1729270298539,-3883.55,0.00024994,2]
[340459858,1729270298550,-3883.55,0.00024994,2]
[340459859,1729270298561,-4394.99,0.00024994,2]
[340459860,1729270298571,-3883.55,0.00024994,2]
[340459861,1729270298580,-4395.07,0.00024994,2]
[340459862,1729270298590,-3883.65661449,0.00024994,2]
[340459863,1729270298600,-151.0,0.00024994,7]
[340459864,1729270298610,-1237.3,0.00024994,2]
[340459865,1729270298620,-1237.3,0.00024994,2]
[340459866,1729270298629,-1237.3,0.00024994,2]
[340459867,1729270298639,-1237.3,0.00024994,2]
[340459868,1729270298650,-1237.46549359,0.00024994,2]
[340459869,1729270298662,-625.0,0.00024995,2]
[340459870,1729270298673,-625.0,0.00024995,2]
[340459871,1729270298682,-625.0,0.00024995,2]
[340459872,1729270298692,-625.0,0.00024995,2]
[340459873,1729270298701,-625.0,0.00024995,2]
[340459874,1729270298711,-570.08,0.00024995,2]
[340459875,1729270298722,-570.08,0.00024995,2]
[340459876,1729270298732,-570.08,0.00024995,2]
[340459877,1729270298742,-570.08,0.00024995,2]
[340459878,1729270298753,-570.10669627,0.00024995,2]
[340459879,1729270298764,-534.35,0.00024995,2]
[340459880,1729270298776,-534.35,0.00024995,2]
[340459881,1729270298786,-534.35,0.00024995,2]
[340459882,1729270298795,-534.35,0.00024995,2]
[340459883,1729270298805,-534.4787703,0.00024995,2]
[340459884,1729270298815,-553.84,0.00024995,2]
[340459885,1729270298825,-553.84,0.00024995,2]
[340459886,1729270298836,-553.84,0.00024995,2]
[340459887,1729270298847,-553.84,0.00024995,2]
[340459888,1729270298856,-554.06903701,0.00024995,2]
[340459889,1729270298867,-710.78,0.00024995,2]
[340459890,1729270298877,-710.78,0.00024995,2]
[340459891,1729270298887,-710.78,0.00024995,2]
[340459892,1729270298896,-710.78,0.00024995,2]
[340459893,1729270298906,-710.9419209,0.00024995,2]
[340459894,1729270298917,-635.26,0.00024995,2]
[340459895,1729270298927,-635.26,0.00024995,2]
[340459896,1729270298937,-635.26,0.00024995,2]
[340459897,1729270298947,-635.26,0.00024995,2]
[340459898,1729270298957,-635.34363787,0.00024995,2]
[340459899,1729270298967,-183.104145,0.00024995,7]
[340459900,1729270298977,-183.104145,0.00024995,7]
[340459901,1729270298988,-500.0,0.00024995,2]
[340459902,1729270298998,-500.0,0.00024995,2]
[340459903,1729270299008,-500.0,0.00024995,2]
[340459904,1729270299018,-500.0,0.00024995,2]
[340459905,1729270299028,-282.66786882,0.00024995,2]
[340459906,1729270299038,-1169.95,0.00024995,2]
[340459907,1729270299047,-1169.95,0.00024995,2]
[340459908,1729270299058,-1169.95,0.00024995,2]
[340459909,1729270299068,-1169.95,0.00024995,2]
[340459910,1729270299078,-1169.97523333,0.00024995,2]
[340459911,1729270299088,-612.76,0.00024995,2]
[340459912,1729270299099,-612.76,0.00024995,2]
[340459913,1729270299108,-612.76,0.00024995,2]
[340459914,1729270299118,-612.76,0.00024995,2]
[340459915,1729270299128,-612.86619722,0.00024995,2]
[340459916,1729270299137,-5078.26,0.00024995,2]
[340459917,1729270299148,-5078.26,0.00024995,2]
[340459918,1729270299158,-5078.26,0.00024995,2]
[340459919,1729270299168,-5078.26,0.00024995,2]
[340459920,1729270299179,-5078.27339489,0.00024995,2]
[340459921,1729270299189,-755.26,0.00024995,2]
[340459922,1729270299199,-755.26,0.00024995,2]
[340459923,1729270299209,-755.26,0.00024995,2]
[340459924,1729270299222,-755.26,0.00024995,2]
[340459925,1729270299231,-755.38,0.00024995,2]
[340459926,1729270299242,-1233.07,0.00024995,2]
[340459927,1729270299253,-1233.07,0.00024995,2]
[340459928,1729270299264,-1233.07,0.00024995,2]
[340459929,1729270299274,-1233.07,0.00024995,2]
[340459930,1729270299284,-1233.08754066,0.00024995,2]
[340459931,1729270299296,-738.9,0.00024995,2]
[340459932,1729270299307,-1368.07,0.00024995,2]
[340459933,1729270299317,-1368.07,0.00024995,2]
[340459934,1729270299326,-1368.07,0.00024995,2]
[340459935,1729270299336,-1368.07,0.00024995,2]
[340459936,1729270299345,-1368.19588395,0.00024995,2]
[340459937,1729270299355,-1041.77,0.00024995,2]
[340459938,1729270299364,-3223.03,0.00024995,2]
[340459939,1729270299374,-500.0,0.00024995,2]
[340459940,1729270299383,-1408.48,0.00024995,2]
[340459941,1729270299393,-1408.48,0.00024995,2]
[340459942,1729270299403,-1408.48,0.00024995,2]
[340459943,1729270299414,-1408.48,0.00024995,2]
[340459944,1729270299425,-1408.71452944,0.00024995,2]
[340459945,1729270299435,-1424.63,0.00024995,2]
[340459946,1729270299446,-1424.63,0.00024995,2]
[340459947,1729270299456,-1424.63,0.00024995,2]
[340459948,1729270299465,-1424.63,0.00024995,2]
[340459949,1729270299476,-1424.75041787,0.00024995,2]
[340459950,1729270299486,-2031.71,0.00024995,2]
[340459951,1729270299496,-500.0,0.00024995,2]
[340459952,1729270299506,-500.0,0.00024995,2]
[340459953,1729270299516,-219.35977354,0.00024995,2]
[340459954,1729270299528,-500.0,0.00024995,2]
[340459955,1729270299539,-500.0,0.00024995,2]
[340459956,1729270299548,-299.34278262,0.00024995,2]
[340459957,1729270299559,-2660.44,0.00024995,2]
[340459958,1729270299569,-2660.44,0.00024995,2]
[340459959,1729270299578,-2660.44,0.00024995,2]